bitfinex/quotes_BTCUSD_20250730
["timestamp","ask_amount","ask_price","bid_price","bid_amount"]
[1753869798393,1e-08,118400.0,118390.0,2.29248019]
[1753869798621,1e-08,118400.0,118390.0,2.34248019]
[1753869798850,0.0034,118430.0,118420.0,0.23129386]
[1753869799195,0.00596482,118430.0,118420.0,0.9092373]
[1753869799452,0.00596482,118430.0,118420.0,0.9320673]
[1753869800198,0.00596482,118430.0,118420.0,0.9349973]
[1753869801266,0.00896482,118430.0,118420.0,0.9349973]
[1753869801878,0.00596482,118430.0,118420.0,0.9349973]
[1753869802091,0.00696482,118430.0,118420.0,1.1548373]
[1753869802252,0.00696482,118430.0,118420.0,1.1519073]
[1753869802927,0.00696482,118430.0,118420.0,0.68885116]
[1753869803171,0.00696482,118430.0,118420.0,1.1519073]
[1753869803621,0.02276482,118430.0,118420.0,1.1519073]
[1753869804247,0.00696482,118430.0,118420.0,1.1519073]
[1753869804641,0.00696482,118430.0,118420.0,1.1548373]
[1753869804858,0.00488482,118430.0,118420.0,1.1548373]
[1753869805537,0.00696482,118430.0,118420.0,0.69178116]
[1753869805756,0.00696482,118430.0,118420.0,1.1548373]
[1753869805957,0.00596482,118430.0,118420.0,1.1548373]
[1753869806795,0.00596482,118430.0,118420.0,0.92330923]
[1753869807060,0.00596482,118430.0,118420.0,1.1548373]
[1753869807275,0.00388482,118430.0,118420.0,1.1548373]
[1753869808546,0.00388482,118430.0,118420.0,1.1705373]
[1753869810003,0.00388482,118430.0,118420.0,1.1855373]
[1753869810807,0.00388482,118430.0,118420.0,0.72248116]
[1753869811027,0.00388482,118430.0,118420.0,1.1855373]
[1753869819435,0.00388482,118430.0,118420.0,1.20298632]
[1753869820089,0.00388482,118430.0,118420.0,1.2114697]
[1753869821635,0.00388482,118430.0,118420.0,1.19402068]
[1753869823694,0.00388482,118430.0,118420.0,1.23402068]
[1753869825079,0.00388482,118430.0,118420.0,1.19402068]
[1753869826497,0.00388482,118430.0,118420.0,0.73096454]
[1753869826707,0.00388482,118430.0,118420.0,1.19402068]
[1753869827502,0.00388482,118430.0,118420.0,1.06562068]
[1753869827703,0.00388482,118430.0,118420.0,1.19394068]
[1753869827912,0.00388482,118430.0,118420.0,1.1854573]
[1753869830488,0.00388482,118430.0,118420.0,0.72240116]
[1753869830698,0.00588482,118430.0,118420.0,1.1518273]
[1753869830941,0.00588482,118430.0,118420.0,0.68877116]
[1753869831169,0.00588482,118430.0,118420.0,1.1518273]
[1753869832269,0.00588482,118430.0,118420.0,1.1548473]
[1753869833107,0.00588482,118430.0,118420.0,1.17229632]
[1753869833540,0.00588482,118430.0,118420.0,1.1666524]
[1753869833774,0.00588482,118430.0,118420.0,1.17530721]
[1753869836793,0.00388482,118430.0,118420.0,1.17530721]
[1753869837920,0.00388482,118430.0,118420.0,0.71225107]
[1753869838129,0.00388482,118430.0,118420.0,1.17530721]
[1753869840695,0.00388482,118430.0,118420.0,0.71225107]
[1753869840915,0.00388482,118430.0,118420.0,1.17530721]
[1753869844535,0.00388482,118430.0,118420.0,1.19110721]
[1753869845990,0.00388482,118430.0,118420.0,0.72805107]
[1753869846222,0.00388482,118430.0,118420.0,1.19110721]
[1753869846700,0.00388482,118430.0,118420.0,1.20700721]
[1753869847814,0.00388482,118430.0,118420.0,1.17530721]
[1753869848525,0.00388482,118430.0,118420.0,1.20760721]
[1753869853835,0.00388482,118430.0,118420.0,1.19170721]
[1753869860070,0.00388482,118430.0,118420.0,1.20760721]
[1753869861253,0.00388482,118430.0,118420.0,1.20960721]
[1753869863665,1e-08,118430.0,118420.0,1.78113528]
[1753869864840,1e-08,118430.0,118420.0,2.01113528]
[1753869865527,1e-08,118430.0,118420.0,1.78113528]
[1753869865755,1e-08,118430.0,118420.0,1.88113528]
[1753869866881,1e-08,118430.0,118420.0,1.78113528]
[1753869867096,1e-08,118430.0,118420.0,2.04323528]
[1753869867889,1e-08,118430.0,118420.0,2.14323528]
[1753869868948,1e-08,118430.0,118420.0,2.04323528]
[1753869869168,1e-08,118430.0,118420.0,2.15323528]
[1753869869988,0.00300001,118450.0,118440.0,0.23126106]
[1753869870229,0.00516536,118450.0,118440.0,0.9091045]
[1753869870582,0.00516536,118450.0,118440.0,0.9322945]
[1753869871445,0.00516536,118450.0,118440.0,0.9354945]
[1753869871691,0.06242536,118450.0,118440.0,0.44401836]
[1753869871953,0.06242536,118450.0,118440.0,0.67554643]
[1753869872553,0.06242536,118450.0,118440.0,0.9070745]
[1753869872754,0.06242536,118450.0,118440.0,0.67554643]
[1753869872997,0.06242536,118450.0,118440.0,0.9070745]
[1753869873648,0.03756536,118450.0,118440.0,0.9302645]
[1753869874231,0.03856536,118450.0,118440.0,0.9302645]
[1753869874406,0.06342536,118450.0,118440.0,0.9302645]
[1753869875670,0.04167536,118450.0,118440.0,0.9302645]
[1753869875949,0.03856536,118450.0,118440.0,0.9302645]
[1753869876784,0.03856536,118450.0,118440.0,1.1500645]
[1753869879050,0.02256536,118450.0,118440.0,1.1500645]
[1753869879746,0.02256536,118450.0,118440.0,1.1520945]
[1753869879955,0.00616536,118450.0,118440.0,1.1552945]
[1753869880178,0.00616536,118450.0,118440.0,1.1702945]
[1753869880179,0.00414536,118450.0,118440.0,1.1702945]
[1753869880401,0.00414536,118450.0,118440.0,1.1867945]
[1753869885906,0.00414536,118450.0,118440.0,1.41832257]
[1753869886093,0.00414536,118450.0,118440.0,1.1867945]
[1753869886309,0.00414536,118450.0,118440.0,0.72373836]
[1753869886527,0.00414536,118450.0,118440.0,1.1867945]
[1753869887564,0.00414536,118450.0,118440.0,1.20424352]
[1753869887975,0.00414536,118450.0,118440.0,1.54424352]
[1753869891549,0.00414536,118450.0,118440.0,1.77577159]
[1753869892084,0.00414536,118450.0,118440.0,1.54424352]
[1753869893507,0.00414536,118450.0,118440.0,1.80634352]
[1753869893973,0.00414536,118450.0,118440.0,1.34328738]
[1753869894201,0.00414536,118450.0,118440.0,1.80634352]
[1753869900255,0.00414536,118450.0,118440.0,1.21500738]
[1753869900499,0.00414536,118450.0,118440.0,1.54420352]
[1753869900724,0.00414536,118450.0,118440.0,1.51270352]
[1753869901902,0.00414536,118450.0,118440.0,1.54280352]
[1753869903930,0.00414536,118450.0,118440.0,1.07974738]
[1753869904139,0.00414536,118450.0,118440.0,1.51270352]
[1753869904350,0.00414536,118450.0,118440.0,1.17270352]
[1753869904564,0.00414536,118450.0,118440.0,1.51270352]
[1753869906055,0.00414536,118450.0,118440.0,1.54590352]
[1753869906897,0.00314536,118450.0,118440.0,1.54590352]
[1753869907608,0.00314536,118450.0,118440.0,1.29777545]
[1753869907847,0.00314536,118450.0,118440.0,1.52930352]
[1753869908062,0.00314536,118450.0,118440.0,1.06624738]
[1753869908280,0.00314536,118450.0,118440.0,1.51270352]
[1753869908492,0.00314536,118450.0,118440.0,1.04964738]
[1753869908719,0.00314536,118450.0,118440.0,1.17270352]
[1753869908921,0.00314536,118450.0,118440.0,1.51270352]
[1753869912394,0.00314536,118450.0,118440.0,1.04964738]
[1753869912583,0.00314536,118450.0,118440.0,1.51270352]
[1753869913424,0.00314536,118450.0,118440.0,1.51282352]
[1753869914804,0.00314536,118450.0,118440.0,1.52802352]
[1753869915711,0.00314536,118450.0,118440.0,1.51282352]
[1753869918886,0.00314536,118450.0,118440.0,1.52892352]
[1753869919423,0.00314536,118450.0,118440.0,1.54412352]
[1753869922130,0.00314536,118450.0,118440.0,1.77565159]
[1753869922131,1e-08,118450.0,118440.0,1.77565159]
[1753869922822,1e-08,118450.0,118440.0,1.88565159]
[1753869923963,1e-08,118460.0,118450.0,1.08244982]
[1753869924201,1e-08,118460.0,118450.0,1.29736712]
[1753869924438,1e-08,118460.0,118450.0,1.32377712]
[1753869925184,0.00100001,118460.0,118450.0,1.34849848]
[1753869931530,1e-08,118460.0,118450.0,1.34849848]
[1753869933548,1e-08,118460.0,118450.0,0.88544234]
[1753869933775,1e-08,118460.0,118450.0,1.34849848]
[1753869934945,1e-08,118460.0,118450.0,0.88544234]
[1753869935186,1e-08,118460.0,118450.0,1.34849848]
[1753869935909,1e-08,118460.0,118450.0,1.56825848]
[1753869939447,1e-08,118460.0,118450.0,1.55297848]
[1753869940111,1e-08,118460.0,118450.0,1.08992234]
[1753869940329,1e-08,118460.0,118450.0,1.07462234]
[1753869940549,1e-08,118460.0,118450.0,1.30615041]
[1753869940810,1e-08,118460.0,118450.0,1.53767848]
[1753869941037,1e-08,118460.0,118450.0,1.07462234]
[1753869941251,1e-08,118460.0,118450.0,1.53767848]
[1753869941701,1e-08,118460.0,118450.0,1.26029139]
[1753869941702,0.02682001,118460.0,118450.0,1.26029139]
[1753869941925,0.05768403,118460.0,118450.0,1.13173139]
[1753869942144,0.03288403,118460.0,118450.0,1.26029139]
[1753869942357,0.03288403,118460.0,118450.0,1.28371139]
[1753869942562,0.03288403,118460.0,118450.0,1.15515139]
[1753869942775,0.01718403,118460.0,118450.0,1.28583139]
[1753869942987,0.00168403,118460.0,118450.0,1.28882139]
[1753869943438,0.0343,118470.0,118460.0,0.23122827]
[1753869943663,0.03632,118470.0,118460.0,0.90728171]
[1753869943880,0.03632,118470.0,118460.0,0.93282171]
[1753869944095,0.03632,118470.0,118460.0,0.93581171]
[1753869945000,0.03632,118470.0,118460.0,0.46976557]
[1753869945256,0.03632,118470.0,118460.0,0.93070171]
[1753869945753,0.03632,118470.0,118460.0,0.46764557]
[1753869945966,0.03832,118470.0,118460.0,0.93070171]
[1753869946404,0.03632,118470.0,118460.0,0.93070171]
[1753869946837,0.00542,118470.0,118460.0,0.47275557]
[1753869947051,0.00642,118470.0,118460.0,0.93581171]
[1753869949212,0.0044,118470.0,118460.0,0.93581171]
[1753869950178,0.0044,118470.0,118460.0,1.15557171]
[1753869950400,0.00647,118470.0,118460.0,1.15557171]
[1753869950621,0.00647,118470.0,118460.0,1.15709171]
[1753869950863,0.0044,118470.0,118460.0,1.15709171]
[1753869952320,0.0044,118470.0,118460.0,0.69403557]
[1753869952527,0.00647,118470.0,118460.0,1.15709171]
[1753869952964,0.02297,118470.0,118460.0,1.15709171]
[1753869953292,0.02297,118470.0,118460.0,0.69403557]
[1753869953500,0.02297,118470.0,118460.0,1.15709171]
[1753869956850,0.00647,118470.0,118460.0,1.15709171]
[1753869958547,0.00647,118470.0,118460.0,1.15709171]
[1753869959474,0.00647,118470.0,118460.0,0.69403557]
[1753869959736,0.00647,118470.0,118460.0,1.15709171]
[1753869959949,0.0044,118470.0,118460.0,1.15709171]
[1753869964812,0.0044,118470.0,118460.0,1.17454073]
[1753869965019,0.0044,118470.0,118460.0,1.20564073]
[1753869965664,0.0044,118470.0,118460.0,1.17454073]
[1753869978366,0.0044,118470.0,118460.0,1.20734073]
[1753869991136,0.0044,118470.0,118460.0,1.4388688]
[1753869991345,0.0044,118470.0,118460.0,1.20734073]
[1753869993191,0.0044,118470.0,118460.0,1.21734073]
[1753869993926,0.0044,118470.0,118460.0,1.47944073]
[1753869998795,0.0044,118470.0,118460.0,0.98358459]
[1753869999008,0.0044,118470.0,118460.0,1.44664073]
[1753869999257,0.0044,118470.0,118460.0,1.19974073]
[1753870001928,0.0044,118470.0,118460.0,1.21484073]
[1753870005174,0.0044,118470.0,118460.0,1.20484073]
[1753870009377,0.0044,118470.0,118460.0,0.4475373]
[1753870009660,0.0044,118470.0,118460.0,1.44691093]
[1753870011455,0.0044,118470.0,118460.0,1.47169093]
[1753870011908,0.0044484,118470.0,118460.0,1.47169093]
[1753870017190,0.0044484,118470.0,118460.0,1.48169093]
[1753870023663,0.0044484,118470.0,118460.0,1.01863479]
[1753870023893,0.0044484,118470.0,118460.0,1.48169093]
[1753870024108,0.0044484,118470.0,118460.0,1.01863479]
[1753870024325,0.0044484,118470.0,118460.0,1.48169093]
[1753870027281,0.0044484,118470.0,118460.0,1.00353479]
[1753870027480,0.0066084,118470.0,118460.0,1.46659093]
[1753870028108,0.0098384,118470.0,118460.0,1.46659093]
[1753870028327,0.0494584,118470.0,118460.0,0.97659479]
[1753870028572,0.0644584,118470.0,118460.0,1.43965093]
[1753870029047,0.0644584,118470.0,118460.0,1.42965093]
[1753870029671,0.0494584,118470.0,118460.0,1.42965093]
[1753870029912,0.0494584,118470.0,118460.0,1.32619093]
[1753870030132,0.0494584,118470.0,118460.0,1.45443093]
[1753870032268,0.0494584,118470.0,118460.0,1.42965093]
[1753870032269,0.0656584,118470.0,118460.0,1.42965093]
[1753870033094,0.0494584,118470.0,118460.0,1.45443093]
[1753870033728,0.0494584,118470.0,118460.0,1.32619093]
[1753870033934,0.0494584,118470.0,118460.0,1.45443093]
[1753870034140,0.0494584,118470.0,118460.0,0.96659479]
[1753870034559,0.0494584,118470.0,118460.0,1.45443093]
[1753870038881,0.0494584,118470.0,118460.0,1.45648093]
[1753870039310,0.0494584,118470.0,118460.0,0.99342479]
[1753870039549,0.0494584,118470.0,118460.0,1.45648093]
[1753870039991,0.0263384,118470.0,118460.0,1.45648093]
[1753870040280,0.0263384,118470.0,118460.0,0.99342479]
[1753870040493,0.0263384,118470.0,118460.0,1.45648093]
[1753870043791,0.0044484,118470.0,118460.0,1.721759]
[1753870044042,0.11646373,118480.0,118470.0,0.21044111]
[1753870044253,0.11646373,118480.0,118470.0,0.88621455]
[1753870044471,0.11646373,118480.0,118470.0,0.91439455]
[1753870044906,0.11646373,118480.0,118470.0,0.91124455]
[1753870045758,0.11642373,118480.0,118470.0,0.91124455]
[1753870049353,0.11742373,118480.0,118470.0,0.91124455]
[1753870051658,0.11742373,118480.0,118470.0,0.91980329]
[1753870051861,0.11742373,118480.0,118470.0,0.92295329]
[1753870055640,0.11742373,118480.0,118470.0,0.93935329]
[1753870058419,0.11742373,118480.0,118470.0,0.91980329]
[1753870063284,0.11947373,118480.0,118470.0,0.90350329]
[1753870064106,0.12268373,118480.0,118470.0,0.90350329]
[1753870064323,0.12268373,118480.0,118470.0,0.67197522]
[1753870064750,0.12268373,118480.0,118470.0,0.44044715]
[1753870064988,0.12268373,118480.0,118470.0,0.67197522]
[1753870065191,0.12268373,118480.0,118470.0,0.54373522]
[1753870065334,0.12268373,118480.0,118470.0,0.90350329]
[1753870065713,0.12268373,118480.0,118470.0,0.44044715]
[1753870065954,0.12268373,118480.0,118470.0,0.90350329]
[1753870068700,0.12268373,118480.0,118470.0,1.12322329]
[1753870069365,0.12268373,118480.0,118470.0,0.66016715]
[1753870069575,0.12268373,118480.0,118470.0,1.12322329]
[1753870074359,0.12268373,118480.0,118470.0,0.66016715]
[1753870074575,0.12268373,118480.0,118470.0,1.12322329]
[1753870076342,0.12268373,118480.0,118470.0,0.89169522]
[1753870077624,0.12268373,118480.0,118470.0,1.12322329]
[1753870079703,0.17773373,118480.0,118470.0,0.49833841]
[1753870079906,0.17773373,118480.0,118470.0,0.85806648]
[1753870080105,0.17773373,118480.0,118470.0,0.86648618]
[1753870080315,0.17773373,118480.0,118470.0,0.85806648]
[1753870086994,0.17773373,118480.0,118470.0,0.62653841]
[1753870087231,0.17773373,118480.0,118470.0,0.85806648]
[1753870087978,0.17773373,118480.0,118470.0,0.62653841]
[1753870088222,0.17773373,118480.0,118470.0,0.85806648]
[1753870088443,0.4092618,118480.0,118470.0,0.62653841]
[1753870088650,0.4092618,118480.0,118470.0,0.49833848]
[1753870088862,0.41718343,118480.0,118470.0,0.62653848]
[1753870089073,0.21101936,118480.0,118470.0,0.62653848]
[1753870089289,0.44254743,118480.0,118470.0,0.62653855]
[1753870089498,0.44254743,118480.0,118470.0,0.63497907]
[1753870089741,0.44254743,118480.0,118470.0,0.64341952]
[1753870092229,0.44254743,118480.0,118470.0,0.63497907]
[1753870092448,0.6740755,118480.0,118470.0,0.60965729]
[1753870092668,0.69095505,118480.0,118470.0,0.4323973]
[1753870092874,0.76699247,118480.0,118470.0,0.44083825]
[1753870093078,0.77543228,118480.0,118470.0,0.44083825]
[1753870093288,0.77543221,118480.0,118470.0,0.44927913]
[1753870093558,0.77543221,118480.0,118470.0,0.44083825]
[1753870093761,0.78387202,118480.0,118470.0,0.4323973]
[1753870093963,0.78387202,118480.0,118470.0,0.44083825]
[1753870094384,0.78387202,118480.0,118470.0,0.4323973]
[1753870095050,0.32081588,118480.0,118470.0,0.44083825]
[1753870095274,0.70783467,118480.0,118470.0,0.4323973]
[1753870095489,0.69095491,118480.0,118470.0,0.60121641]
[1753870095706,0.69095491,118480.0,118470.0,0.61809824]
[1753870095950,0.68251524,118480.0,118470.0,0.60965729]
[1753870096167,0.68251524,118480.0,118470.0,0.44083825]
[1753870096380,0.69095498,118480.0,118470.0,0.4323973]
[1753870096621,0.77543228,118480.0,118470.0,0.4323973]
[1753870096860,0.0153,118460.0,118450.0,0.17728999]
[1753870097096,0.50801614,118460.0,118450.0,0.39849792]
[1753870097327,0.50801614,118460.0,118450.0,0.40694022]
[1753870097644,0.5569253,118460.0,118450.0,0.2127657]
[1753870097871,0.56536654,118460.0,118450.0,0.2127657]
[1753870098091,0.57380799,118460.0,118450.0,0.2127657]
[1753870099084,0.58224958,118460.0,118450.0,0.2137657]
[1753870099315,0.57380799,118460.0,118450.0,0.2127657]
[1753870099543,0.58224951,118460.0,118450.0,0.2127657]
[1753870099995,0.58324951,118460.0,118450.0,0.2127657]
[1753870100211,0.59185853,118460.0,118450.0,0.2127657]
[1753870101402,0.76069189,118460.0,118450.0,0.2127657]
[1753870101602,0.59185853,118460.0,118450.0,0.2127657]
[1753870101809,0.60030019,118460.0,118450.0,0.1282884]
[1753870102240,0.59185853,118460.0,118450.0,0.1282884]
[1753870102445,0.59185903,118460.0,118450.0,0.1282884]
[1753870103240,0.76069239,118460.0,118450.0,0.1282884]
[1753870103464,0.99716523,118460.0,118450.0,0.1282884]
[1753870103690,0.92109737,118460.0,118450.0,0.1282884]
[1753870103854,0.9210968,118460.0,118450.0,0.1282884]
[1753870104245,0.92953839,118460.0,118450.0,0.1282884]
[1753870104461,0.9210968,118460.0,118450.0,0.1282884]
[1753870104658,0.92953832,118460.0,118450.0,0.1282884]
[1753870104865,0.9210968,118460.0,118450.0,0.1282884]
[1753870105120,0.93797991,118460.0,118450.0,0.1282884]
[1753870105331,0.92953825,118460.0,118450.0,0.1282884]
[1753870105742,0.9210968,118460.0,118450.0,0.1282884]
[1753870106179,0.67268611,118460.0,118450.0,0.29713601]
[1753870106378,0.45804037,118460.0,118450.0,0.1282884]
[1753870106587,0.68956844,118460.0,118450.0,0.1282884]
[1753870106780,0.69800982,118460.0,118450.0,0.1282884]
[1753870106979,0.97302955,118460.0,118450.0,0.1282884]
[1753870107224,1.15030457,118460.0,118450.0,0.1282884]
[1753870107359,1.13342224,118460.0,118450.0,0.1282884]
[1753870108415,1.12498086,118460.0,118450.0,0.1282884]
[1753870109259,0.66192472,118460.0,118450.0,4.84e-05]
[1753870109473,1.45653934,118460.0,118450.0,0.1282884]
[1753870110167,0.94999204,118460.0,118450.0,0.1282884]
[1753870110368,1.41304818,118460.0,118450.0,0.1282884]
[1753870110910,1.07304818,118460.0,118450.0,0.1282884]
[1753870112212,1.46304818,118460.0,118450.0,0.1282884]
[1753870112851,1.30842134,118460.0,118450.0,0.1282884]
[1753870113052,1.39289864,118460.0,118450.0,0.1282884]
[1753870113881,1.08446934,118460.0,118450.0,0.1282884]
[1753870114099,0.99999204,118460.0,118450.0,0.1282884]
[1753870114300,1.30842134,118460.0,118450.0,0.1282884]
[1753870117316,1.31632458,118460.0,118450.0,0.1282884]
[1753870118150,1.26632458,118460.0,118450.0,0.1282884]
[1753870118351,1.31632458,118460.0,118450.0,0.1282884]
[1753870118554,1.3800147,118460.0,118450.0,0.1282884]
[1753870118970,1.31632458,118460.0,118450.0,0.1282884]
[1753870121041,0.78906164,118460.0,118450.0,0.1282884]
[1753870121259,0.73767026,118460.0,118450.0,0.1536884]
[1753870121465,0.38056026,118460.0,118450.0,0.33400839]
[1753870121668,0.38109804,118460.0,118450.0,0.34245069]
[1753870121874,0.37265702,118460.0,118450.0,0.35089292]
[1753870122095,0.37265702,118460.0,118450.0,0.35933501]
[1753870122270,0.38056372,118460.0,118450.0,0.38317703]
[1753870122522,0.38056372,118460.0,118450.0,0.38317717]
[1753870122743,0.3719547,118460.0,118450.0,0.25493632]
[1753870122972,0.364048,118460.0,118450.0,0.86066905]
[1753870123197,0.33868,118460.0,118450.0,0.86066905]
[1753870126058,0.33868,118460.0,118450.0,0.87811807]
[1753870127144,0.33868,118460.0,118450.0,0.81019194]
[1753870127642,0.33768,118460.0,118450.0,0.81119194]
[1753870127868,0.33768,118460.0,118450.0,0.81219194]
[1753870138521,0.33768,118460.0,118450.0,0.50376264]
[1753870138738,0.33768,118460.0,118450.0,0.81219194]
[1753870139550,0.33768,118460.0,118450.0,0.50376264]
[1753870139786,0.33768,118460.0,118450.0,0.81219194]
[1753870141714,0.33768,118460.0,118450.0,1.15219194]
[1753870150164,0.33768,118460.0,118450.0,1.37195194]
[1753870154314,0.33768,118460.0,118450.0,1.06049264]
[1753870154535,0.33768,118460.0,118450.0,1.36892194]
[1753870154754,0.33964,118460.0,118450.0,1.24012194]
[1753870154993,0.36515,118460.0,118450.0,1.24976818]
[1753870155201,0.36515,118460.0,118450.0,1.49644372]
[1753870155627,0.36515,118460.0,118450.0,1.51936372]
[1753870156028,0.36515,118460.0,118450.0,1.52132372]
[1753870156871,0.36515,118460.0,118450.0,1.36715465]
[1753870157610,0.34262,118460.0,118450.0,1.36715465]
[1753870158422,0.34262,118460.0,118450.0,1.34970563]
[1753870159039,0.34262,118460.0,118450.0,1.36715465]
[1753870159685,0.34262,118460.0,118450.0,1.14739465]
[1753870161993,0.34262,118460.0,118450.0,1.12994563]
[1753870162265,0.34262,118460.0,118450.0,1.14739465]
[1753870169057,0.36732,118460.0,118450.0,1.13189465]
[1753870169279,0.36732,118460.0,118450.0,1.12993465]
[1753870170440,0.36732,118460.0,118450.0,1.13196465]
[1753870170868,0.33768,118460.0,118450.0,1.13196465]
[1753870171085,0.33768,118460.0,118450.0,1.14846465]
[1753870171510,0.33768,118460.0,118450.0,1.15150465]
[1753870173254,0.33768,118460.0,118450.0,1.14846465]
[1753870173966,0.33768,118460.0,118450.0,1.15150465]
[1753870174638,0.33768,118460.0,118450.0,1.14846465]
[1753870176185,0.33768,118460.0,118450.0,1.15150465]
[1753870178994,0.33768,118460.0,118450.0,1.30551646]
[1753870180563,0.33768,118460.0,118450.0,1.30247646]
[1753870181742,0.33768,118460.0,118450.0,1.30044646]
[1753870181974,0.33768,118460.0,118450.0,1.30247646]
[1753870183775,0.33977,118460.0,118450.0,1.28597646]
[1753870183998,0.36755,118460.0,118450.0,1.28597646]
[1753870185371,0.36755,118460.0,118450.0,1.28394646]
[1753870185744,0.36755,118460.0,118450.0,1.26854646]
[1753870186610,0.36755,118460.0,118450.0,1.26846646]
[1753870187050,0.36755,118460.0,118450.0,1.14014646]
[1753870187265,0.36755,118460.0,118450.0,1.26846646]
[1753870188578,0.36755,118460.0,118450.0,1.48822646]
[1753870189679,0.36755,118460.0,118450.0,1.02603264]
[1753870189904,0.36755,118460.0,118450.0,1.35990646]
[1753870190125,0.36755,118460.0,118450.0,1.48818646]
[1753870191995,0.36755,118460.0,118450.0,1.49021646]
[1753870192210,0.34285,118460.0,118450.0,1.50601646]
[1753870201863,0.33977,118460.0,118450.0,1.50601646]
[1753870202756,0.33768,118460.0,118450.0,1.50601646]
[1753870202993,0.33768,118460.0,118450.0,1.52561646]
[1753870204557,0.33768,118460.0,118450.0,1.52261646]
[1753870205393,0.33768,118460.0,118450.0,1.50601646]
[1753870206519,0.33768,118460.0,118450.0,1.52261646]
[1753870206761,0.33768,118460.0,118450.0,1.52561646]
[1753870208296,0.33768,118460.0,118450.0,1.52261646]
[1753870208519,0.33768,118460.0,118450.0,1.04382264]
[1753870208755,0.33768,118460.0,118450.0,1.50601646]
[1753870213390,0.33982,118460.0,118450.0,1.04382264]
[1753870213648,0.34284,118460.0,118450.0,1.04382264]
[1753870213937,0.36721,118460.0,118450.0,1.49021646]
[1753870216154,0.35977,118460.0,118450.0,1.49021646]
[1753870224407,0.33238,118460.0,118450.0,1.49021646]
[1753870224621,0.33024,118460.0,118450.0,1.50661646]
[1753870224838,0.33024,118460.0,118450.0,1.52311646]
[1753870225040,0.33024,118460.0,118450.0,1.52618646]
[1753870226481,0.33024,118460.0,118450.0,1.04442264]
[1753870226695,0.33024,118460.0,118450.0,1.50661646]
[1753870229483,0.33539,118460.0,118450.0,1.50661646]
[1753870229685,0.35873,118460.0,118450.0,1.50661646]
[1753870229897,0.35873,118460.0,118450.0,1.49021646]
[1753870233387,0.35873,118460.0,118450.0,1.02802264]
[1753870233541,0.35873,118460.0,118450.0,1.49021646]
[1753870234547,0.35873,118460.0,118450.0,1.02802264]
[1753870234746,0.35873,118460.0,118450.0,1.49021646]
[1753870235168,0.35873,118460.0,118450.0,1.02802264]
[1753870235406,0.35873,118460.0,118450.0,1.49021646]
[1753870238324,0.33539,118460.0,118450.0,1.49021646]
[1753870242599,0.33234,118460.0,118450.0,1.49021646]
[1753870243898,0.33234,118460.0,118450.0,1.36193646]
[1753870244071,0.33234,118460.0,118450.0,1.49021646]
[1753870244636,0.33084748,118460.0,118450.0,1.49021646]
[1753870245488,0.33084748,118460.0,118450.0,1.50631646]
[1753870245708,0.32874748,118460.0,118450.0,1.50631646]
[1753870251439,0.32874748,118460.0,118450.0,1.52564646]
[1753870251674,0.32874748,118460.0,118450.0,1.75674337]
[1753870252591,0.16961573,118480.0,118470.0,0.21159013]
[1753870252833,0.17175573,118480.0,118470.0,0.91005125]
[1753870253085,0.17175573,118480.0,118470.0,0.91210125]
[1753870254022,0.17475573,118480.0,118470.0,0.68100434]
[1753870254487,0.17475573,118480.0,118470.0,0.91210125]
[1753870255250,0.19005573,118480.0,118470.0,0.68100434]
[1753870258089,0.17475573,118480.0,118470.0,0.68100434]
[1753870258731,0.14939373,118480.0,118470.0,0.68100434]
[1753870258948,0.14478573,118480.0,118470.0,0.91210125]
[1753870259164,0.14478573,118480.0,118470.0,0.69690434]
[1753870260026,0.14478573,118480.0,118470.0,0.92800125]
[1753870260246,0.11942373,118480.0,118470.0,0.92800125]
[1753870260671,0.11942373,118480.0,118470.0,0.69690434]
[1753870261928,0.11942373,118480.0,118470.0,0.46580743]
[1753870262217,0.11942373,118480.0,118470.0,0.92800125]
[1753870263793,0.11942373,118480.0,118470.0,0.69690434]
[1753870266655,0.11942373,118480.0,118470.0,0.46580743]
[1753870266866,0.11942373,118480.0,118470.0,0.69690434]
[1753870268636,0.11942373,118480.0,118470.0,0.46580743]
[1753870268851,0.12456373,118480.0,118470.0,0.44990743]
[1753870269074,0.14939373,118480.0,118470.0,0.68100434]
[1753870269299,0.14939373,118480.0,118470.0,0.44990743]
[1753870269517,0.14939373,118480.0,118470.0,0.67895434]
[1753870269734,0.16579373,118480.0,118470.0,0.67895434]
[1753870270836,0.16579373,118480.0,118470.0,0.44785743]
[1753870271078,0.16579373,118480.0,118470.0,0.67895434]
[1753870274914,0.14939373,118480.0,118470.0,0.68100434]
[1753870276241,0.12456373,118480.0,118470.0,0.68100434]
[1753870276451,0.12456373,118480.0,118470.0,0.44990743]
[1753870276668,0.12456373,118480.0,118470.0,0.68100434]
[1753870276889,0.12456373,118480.0,118470.0,0.44990743]
[1753870277105,0.12456373,118480.0,118470.0,0.68100434]
[1753870279470,0.11942373,118480.0,118470.0,0.69630434]
[1753870279707,0.11942373,118480.0,118470.0,0.69924434]
[1753870282319,0.11942373,118480.0,118470.0,0.68394434]
[1753870282548,0.11942373,118480.0,118470.0,0.69650434]
[1753870284105,0.11942373,118480.0,118470.0,1.27446434]
[1753870284995,0.11942373,118480.0,118470.0,1.50556125]
[1753870287886,0.11942373,118480.0,118470.0,1.50262125]
[1753870288310,0.11942373,118480.0,118470.0,1.50556125]
[1753870290111,0.0066821,118490.0,118480.0,1.01171854]
[1753870290112,0.0036921,118490.0,118480.0,1.01171854]
[1753870290333,0.0036921,118490.0,118480.0,1.24219584]
[1753870290545,0.0036921,118490.0,118480.0,0.79101202]
[1753870290773,0.0036921,118490.0,118480.0,1.25320584]
[1753870290989,0.0036921,118490.0,118480.0,1.25026584]
[1753870292074,0.0036921,118490.0,118480.0,1.25126584]
[1753870292285,0.0036921,118490.0,118480.0,1.25520584]
[1753870292782,0.0036921,118490.0,118480.0,0.79007202]
[1753870292970,0.0036921,118490.0,118480.0,1.25226584]
[1753870293220,0.0057521,118490.0,118480.0,1.25226584]
[1753870296365,0.0057521,118490.0,118480.0,0.79007202]
[1753870296618,0.0057521,118490.0,118480.0,1.25226584]
[1753870298744,0.0036921,118490.0,118480.0,1.25226584]
[1753870299214,0.0036921,118490.0,118480.0,1.26776584]
[1753870299662,0.0036921,118490.0,118480.0,1.25226584]
[1753870299883,0.0036921,118490.0,118480.0,1.26726584]
[1753870300101,0.0036921,118490.0,118480.0,1.27020584]
[1753870301879,0.0036921,118490.0,118480.0,0.80801202]
[1753870302104,0.0036921,118490.0,118480.0,1.25226584]
[1753870304430,0.0036921,118490.0,118480.0,0.79007202]
[1753870304645,0.0036921,118490.0,118480.0,1.25226584]
[1753870306394,0.0036921,118490.0,118480.0,0.79007202]
[1753870306615,0.0036921,118490.0,118480.0,1.25226584]
[1753870315483,0.0036921,118490.0,118480.0,1.27090584]
[1753870316388,0.0036921,118490.0,118480.0,1.50200275]
[1753870316390,0.0036921,118490.0,118480.0,1.51945177]
[1753870316870,1e-08,118490.0,118480.0,1.51945177]